Cogmind - Beta 16.1 @@@ ROGUE MODE // 2026.04.20 @ 02:42:12 Player: Nomad Result: Destroyed by Y-45 Defender with Beam Rifle Performance ------------- Evolutions (1) 500 Regions Visited (3) 600 Robots Destroyed (20) 100 Value Destroyed (622) 622 Prototype IDs (1) 20 Alien Tech Used (0) 0 Bonus (333) 333 TOTAL SCORE: 2175 Bonus ------- Pacifist 200 Follower Combat Kills 133 Cogmind --------- Core Integrity 0/400 Matter 300/300 Energy 100/100 System Corruption 0% Temperature Cool (9) Movement Core (150) Ox2 Location -9/Storage Parts ------- > --- POWER (3) -------- Improved Ion Engine > --- PROPULSION (2) --- (None) > --- UTILITY (2) ------ (None) > --- WEAPON (2) ------- (None) > --- INVENTORY (5) ---- (None) Peak State ------------ > --- POWER ------------ Ion Engine Ion Engine > --- PROPULSION ------- Aluminum Leg Aluminum Leg > --- UTILITY ---------- Hacking Suite Hacking Suite > --- WEAPON ----------- Light EM Pulse Cannon Scatter Rocket Array > --- INVENTORY -------- Drone Bay Drone Bay [Rating: 19] Favorites ----------- Power Ion Engine Engine Ion Engine Propulsion Aluminum Leg Leg Aluminum Leg Utility Hacking Suite Device Drone Bay Storage Small Storage Unit Hackware Hacking Suite Weapon Improved Grenade Launcher Energy Gun Medium Laser Energy Cannon EM Pulse Cannon Ballistic Gun Assault Rifle Launcher Improved Grenade Launcher Special Weapon Welding Torch Build | -11 -10 -9 -9 ------- Run | Yrd Mat Mat Sto Slots Evolved 2 | . . 2 . Power 2 | . . 2 . Propulsion . | . . . . Utility . | . . . . Weapon . | . . . . Parts Attached 22 | 6 . 9 7 Power 5 | 1 . 3 1 Engine 5 | 1 . 3 1 Core . | . . . . Reactor . | . . . . Propulsion 4 | 2 . 2 . Treads . | . . . . Leg 4 | 2 . 2 . Wheel . | . . . . Hover . | . . . . Flight . | . . . . Utility 5 | 1 . 2 2 Device 2 | . . . 2 Storage 1 | 1 . . . Processor . | . . . . Hackware 2 | . . 2 . Protection . | . . . . Artifact . | . . . . Weapon 8 | 2 . 2 4 Energy Gun 1 | 1 . . . Energy Cannon 2 | . . 1 1 Ballistic Gun 2 | 1 . . 1 Ballistic Cannon . | . . . . Launcher 2 | . . 1 1 Special Weapon 1 | . . . 1 Impact Weapon . | . . . . Slashing Weapon . | . . . . Piercing Weapon . | . . . . Special Melee Weapon . | . . . . Unidentified Prototypes 1 | . . . 1 Parts Lost 8 | . . 1 7 Power 2 | . . 1 1 Propulsion 1 | . . . 1 Utility 2 | . . . 2 Weapon 3 | . . . 3 Highest Loss Streak 3 | . . 1 3 To Critical Strikes . | . . . . Average Backups 1 | 1 2 . 1 Power . | . 1 . . Propulsion . | . . . . Utility . | . . . . Weapon . | . 1 . . Tool/Special . | . . . . Unused Backups 2 | . . 2 . Power . | . . . . Propulsion 1 | . . 1 . Utility . | . . . . Weapon 1 | . . 1 . Tool/Special . | . . . . Average Slot Usage (%) 70 | . 85 81 62 Engine 16 | . 14 19 15 Leg 16 | . 28 19 12 Device 3 | . . . 5 Storage 1 | . 14 . . Hackware 15 | . . 20 16 Energy Gun 1 | . 14 . . Energy Cannon 6 | . . 10 5 Ballistic Gun 2 | . 14 . . Launcher 6 | . . 10 6 Peak Build Rating 19 | 6 6 17 19 Average Rating 12 | 4 6 14 13 On Entrance 7 | . 6 6 16 Avg Prop Armor Cover (%) 17 | 17 17 17 . Naked Turns . | . . . . Heaviest Build 22 | 12 12 22 22 Greatest Support 20 | 3 3 20 20 Greatest Overweight (x) 6 | 3 3 3 6 Average Overweight (x) . | 2 3 . . Largest Inventory Capacity 8 | 8 8 8 5 Average Capacity 5 | 7 8 5 5 Most Carried 5 | 5 2 5 5 Average Carried 1 | 2 2 . 1 Final Capacity 8 | 8 8 5 5 Final Carried 2 | 2 2 . . Class Distribution -------------------- 60% | Hacker-Mutant 30% | Mutant 8% | Commander-Mutant Dominant Class ---------------- Mutant | -10/Materials Hacker-Mutant | -9/Materials Hacker-Mutant | -9/Storage Resources | -11 -10 -9 -9 ----------- Run | Yrd Mat Mat Sto Matter Collected 635 | 224 36 175 200 Remotely . | . . . . Salvage Created 581 | . . 442 139 Parts 45 | . . 31 14 Haulers Intercepted . | . . . . Recyclers Shooed . | . . . . Parts Field Recycled . | . . . . Retrieved Matter . | . . . . Parts Self-Destructed . | . . . . Prevented . | . . . . Parts Restored . | . . . . Kills | -11 -10 -9 -9 ------- Run | Yrd Mat Mat Sto Combat Hostiles Destroyed 13 | . . 9 4 Melee 1 | . . . 1 Cannons 8 | . . 8 . AOE 4 | . . 1 3 Classes Destroyed 7 | . . 5 2 Worker 1 | . . 1 . Builder 2 | . . . 2 Mechanic 1 | . . . 1 Operator 2 | . . 2 . Watcher 1 | . . 1 . Grunt 5 | . . 5 . Sentry 8 | . . 4 4 Best Kill Streak 6 | . . 4 6 Combat Bots Only 4 | . . 4 3 Max Kills in Single Turn 2 | . . 1 2 Gunslinging . | . . . . Exploded 2 | . . 1 2 Melee 1 | . . . 1 Uniques/NPCs Destroyed . | . . . . Combat | -11 -10 -9 -9 -------- Run | Yrd Mat Mat Sto Hostile Shots Fired 109 | . . 31 78 Missed 32 | . . 10 22 Hits 77 | . . 21 56 Projectile 77 | . . 21 56 Critical Strikes 6 | . . . 6 Damage Taken 1282 | . . 313 969 Core 414 | . . 46 368 Absorbed by Shields . | . . . . Regen/Repaired (Parts) 24 | . . 24 . Core Remaining (%) 100 | 100 100 . . Volleys Fired 34 | . . 23 11 Largest 2 | . . 2 1 Hottest 99 | . . 99 50 Shots Fired 39 | . . 28 11 Gun 3 | . . . 3 Cannon 23 | . . 23 . Launcher 8 | . . 5 3 Special 5 | . . . 5 Kinetic 3 | . . . 3 Thermal 5 | . . . 5 Explosive 8 | . . 5 3 Electromagnetic 23 | . . 23 . Robot Hit Streak 14 | . . 14 4 Robot Miss Streak 6 | . . 1 6 Penetration Max . | . . . . Secondary Targets . | . . . . Shots Hit Robots 30 | . . 21 9 Core Hits 43 | . . 15 28 Critical Kills . | . . . . Critical Parts Destroyed . | . . . . Critical Strikes . | . . . . Melee Attacks . | . . . . Impact . | . . . . Slashing . | . . . . Piercing . | . . . . Sneak Attacks . | . . . . Combat Hostiles . | . . . . Follow-up Attacks . | . . . . Damage Inflicted 1181 | . . 711 470 Guns 29 | . . . 29 Cannons 460 | . . 460 . Explosions 642 | . . 251 391 Melee . | . . . . Ramming 42 | . . . 42 Kinetic 29 | . . . 29 Thermal 43 | . . 35 8 Explosive 607 | . . 216 391 Electromagnetic 460 | . . 460 . Impact . | . . . . Slashing . | . . . . Piercing . | . . . . Highest Corruption . | . . . . Average Corruption . | . . . . Corruption Purged . | . . . . Corruption Blocked . | . . . . Overload Shots . | . . . . Overflow Damage 9 | . . 4 5 Projectiles 4 | . . 4 . Explosions 5 | . . . 5 Melee . | . . . . Knockbacks . | . . . . Impact . | . . . . Kinetic . | . . . . Secondary . | . . . . Self-Inflicted Damage 210 | . . 29 181 Shots 7 | . . 1 6 Rammed 14 | . . . 14 Targets Rammed 14 | . . . 14 Kicked . | . . . . Crushed . | . . . . Highest Temperature 189 | . . 189 9 Average Temperature 63 | . . 66 6 Received Heat Transfer 468 | . . 111 357 Siege Activations . | . . . . Martial Activations . | . . . . Shielding Activations . | . . . . Robots Disrupted . | . . . . Combat Hostiles . | . . . . Robots Corrupted . | . . . . Combat Hostiles . | . . . . Parts Fried 2 | . . 2 . Impact Corruptions . | . . . . Robots Melted . | . . . . Combat Hostiles . | . . . . Parts Melted . | . . . . Heat Transferred 150 | . . 50 100 Parts Sabotaged . | . . . . Parts Stolen . | . . . . Parts Stripped . | . . . . Power Chain Reactions 1 | . . 1 . Alert | -11 -10 -9 -9 ------- Run | Yrd Mat Mat Sto Maximum Alert Level 1 | . . . 1 Low Security (%) 99 | 100 100 100 99 Level 1 . | . . . . Level 2 . | . . . . Level 3 . | . . . . Level 4 . | . . . . Level 5 . | . . . . High Security . | . . . . Max Security . | . . . . Peak Influence 208 | . . 176 208 Initial 57 | . . . 57 Average 80 | . . 95 92 Influence Increases 909 | . . 339 570 Destroy 0b10 Robot/C 440 | . . 180 260 Destroy 0b10 Robot/NC 35 | . . 20 15 Destroy Leader 142 | . . 62 80 Allied During Kill 57 | . . . 57 Successful Hack 6 | . . 1 5 Disable Machine 30 | . . . 30 Destroy Structure 139 | . . 46 93 Lose Combat Pursuer 60 | . . 30 30 Influence Decreases 845 | . . 202 643 Entered New Map 80 | . . . 80 Time Decay 545 | . . 192 353 Lost Part 80 | . . 10 70 Lost Ally 140 | . . . 140 Squads Dispatched 5 | . . 2 3 Investigation 1 | . . 1 . Extermination . | . . . . Reinforcement 1 | . . 1 . Assault . | . . . . Garrison 3 | . . . 3 Intercept . | . . . . Searches Triggered . | . . . . Construction Impeded . | . . . . Haulers Reinforced . | . . . . Active Scanning Responses . | . . . . Cargo Convoy Interrupts . | . . . . Stealth | -11 -10 -9 -9 --------- Run | Yrd Mat Mat Sto Distress Signals 6 | . . 3 3 Communications Jammed . | . . . . Distress Signals . | . . . . Times Spotted 30 | . . 14 16 Peak Tracking Total 5 | . . 5 5 Tactical Retreats 2 | . . 1 1 Traps | -11 -10 -9 -9 ------- Run | Yrd Mat Mat Sto Traps Triggered 4 | . . . 4 Indirectly . | . . . . Trap Hack Attempts . | . . . . Triggered . | . . . . Disarmed . | . . . . Reprogrammed . | . . . . Reused . | . . . . Traps Extracted . | . . . . Installed . | . . . . Triggered . | . . . . Machines | -11 -10 -9 -9 ---------- Run | Yrd Mat Mat Sto Machines Disabled 2 | . . . 2 Max in Single Turn 1 | . . . 1 Machines Repaired . | . . . . Machines Dismantled . | . . . . Machines Sabotaged . | . . . . Overloaded Fab Kills . | . . . . Hacking | -11 -10 -9 -9 --------- Run | Yrd Mat Mat Sto Machines Accessed 10 | . 1 2 7 Terminals 8 | . 1 1 6 Fabricators . | . . . . Repair Stations 1 | . . 1 . Recycling Units . | . . . . Scanalyzers . | . . . . Garrison Access 1 | . . . 1 Total Hacks 26 | . 2 8 16 Successful 18 | . 1 6 11 Failed 8 | . 1 2 5 Catastrophic . | . . . . Database Lockouts . | . . . . Manual 2 | . . . 2 Terminals 17 | . 2 1 14 Fabricators . | . . . . Repair Stations 7 | . . 7 . Recycling Units . | . . . . Scanalyzers . | . . . . Garrison Access 2 | . . . 2 Terminal Hacks 10 | . 1 . 9 Record 4 | . . . 4 Open Door 2 | . . . 2 Emergency Access Points 1 | . . . 1 Locate Traps 1 | . 1 . . Extermination Status 1 | . . . 1 Zone Layout 1 | . . . 1 Fabricator Hacks . | . . . . Repair Station Hacks 6 | . . 6 . Scan Component 3 | . . 3 . Repair 3 | . . 3 . Recycling Unit Hacks . | . . . . Scanalyzer . | . . . . Garrison Access Hacks 2 | . . . 2 Unlock Access 1 | . . . 1 Coupler Status 1 | . . . 1 Unauthorized Hacks . | . . . . Terminals . | . . . . Fabricators . | . . . . Repair Stations . | . . . . Recycling Units . | . . . . Scanalyzers . | . . . . Garrison Access . | . . . . Data Cores Recovered . | . . . . Used . | . . . . Hacking Detections 8 | . . 2 6 Full Trace Events 1 | . . 1 . Feedback Events . | . . . . Feedback Blocked . | . . . . Robot Schematics Acquired . | . . . . Robots Built . | . . . . Authchips . | . . . . Time . | . . . . Total Robot Build Rating . | . . . . Part Schematics Acquired . | . . . . Parts Built . | . . . . Authchips . | . . . . Time . | . . . . Total Part Build Rating . | . . . . Part Studies Acquired . | . . . . Parts Repaired 3 | . . 3 . Time 90 | . . 90 . Parts Recycled . | . . . . Recycled Matter . | . . . . Retrieved Matter . | . . . . Retrieved Components . | . . . . Parts Scanalyzed . | . . . . Part Schematics Acquired . | . . . . Parts Damaged . | . . . . Bothacking | -11 -10 -9 -9 ------------ Run | Yrd Mat Mat Sto Used RIF Installer . | . . . . Robots Hacked . | . . . . Non-combat . | . . . . Combat . | . . . . Robot Hacks Applied . | . . . . Relay Couplers Released . | . . . . Fabnet Peak Effective % . | . . . . Robots Rewired . | . . . . Allies Hacked . | . . . . Hacks Repelled . | . . . . Allies | -11 -10 -9 -9 -------- Run | Yrd Mat Mat Sto Total Allies 10 | . . . 10 Largest Group 10 | . . . 10 Highest-Rated Group 88 | . . . 88 Highest-Rated Ally 16 | . . . 16 Total Orders . | . . . . Ally Attacks 38 | . . . 38 Total Damage 418 | . . . 418 Kills 9 | . . . 9 Allies Corrupted . | . . . . Allies Melted . | . . . . Intel | -11 -10 -9 -9 ------- Run | Yrd Mat Mat Sto Active Infowar (turns) . | . . . . Robot Analysis Total . | . . . . Derelict Logs Recovered . | . . . . Drone Launches 9 | . . . 9 Drone Recoveries 8 | . . . 8 Exploration | -11 -10 -9 -9 ------------- Run | Yrd Mat Mat Sto Turns Passed 1640 | 75 155 464 946 Spaces Moved 906 | 41 77 233 555 Core 322 | 41 77 13 191 Treads . | . . . . Legs 584 | . . 220 364 Wheels . | . . . . Hover . | . . . . Flight . | . . . . Fastest Speed 50 | 50 200 120 50 Average Speed 147 | 152 200 139 142 Slowest Speed 350 | 200 200 200 350 Overloaded Moves . | . . . . Propulsion Burnouts . | . . . . Robots Hopped . | . . . . Potential Cave-ins . | . . . . Cave-ins Triggered . | . . . . Exploration Rate (%) 27 | 3 18 26 64 Regions Visited 3 Branch Regions 1 Pre-discovered Areas . | . . . . Known Exits Taken . | . . . . Unknown Exits Taken 3 | 1 1 1 . Scrap Searched . | . . . . Spaces Dug . | . . . . Terrain Destroyed 180 | . . 50 130 Melee . | . . . . Projectile . | . . . . AOE 180 | . . 50 130 Terrain Rammed . | . . . . Walls Destroyed . | . . . . Machines Disabled . | . . . . Actions | -11 -10 -9 -9 --------- Run | Yrd Mat Mat Sto Total 1174 | 54 79 348 693 Wait 145 | . 3 61 81 Move 903 | 40 76 232 555 Hop . | . . . . Pick Up 27 | 8 . 11 8 Fast Attach . | . . . . Attach 25 | 6 . 11 8 Detach 7 | . . 3 4 Swap . | . . . . Drop 9 | . . 7 2 Fire 34 | . . 23 11 Melee . | . . . . Ram 14 | . . . 14 Kick . | . . . . Crush . | . . . . Escape Stasis 10 | . . . 10 Rewire . | . . . . Trap . | . . . . Miscellaneous . | . . . . Route ------- -11/Scrapyard -10/Materials -9/Materials -9/Storage (discovered 1 exit: Gar) History --------- Turn | Location | Event 3 | -11/Scrapyard | Discovered new exit (range 16) 76 | -11/Scrapyard | Entered Materials 77 | -10/Materials | Met a group of wandering Federalists 201 | -10/Materials | Discovered new exit (range 16) 231 | -10/Materials | Entered another Materials area 231 | -9/Materials | Evolved 2 slots: Power x2 350 | -9/Materials | Repaired Imp. Grenade Launcher 350 | -9/Materials | Repaired Lgt. Ion Engine 376 | -9/Materials | Repaired Aluminum Leg? 550 | -9/Materials | Build established: Hacker-Mutant 683 | -9/Materials | Discovered new exit (range 7) 695 | -9/Materials | Entered Storage 750 | -9/Storage | Assisted by bots powering up and referring to "LRC-V3" 934 | -9/Storage | Lost 6 allies 1097 | -9/Storage | Found Prototype Launcher 1100 | -9/Storage | Identified Scatter Rocket Array 1176 | -9/Storage | Garrison activated, responded to threat 1221 | -9/Storage | Identified exit to Garrison 1237 | -9/Storage | Lost 4 allies 1281 | -9/Storage | Lost 3 parts (1p1n1w) 1290 | -9/Storage | Core integrity fell below 50% 1379 | -9/Storage | Core integrity fell below 20% 1641 | -9/Storage | Destroyed by Y-45 Defender with Beam Rifle Last Messages --------------- W-16 Scout sends out distress signal. Drone retrieved by Drone Bay (repair cost: 2). Drone retrieved by Drone Bay (no repairs). Drone released from Drone Bay. Drone retrieved by Drone Bay (no repairs). Drone Bay destroyed. Drone retrieved by Drone Bay (no repairs). Critical hit (Burn: +37). Drone retrieved by Drone Bay (no repairs). K-01 Serf cleans the Terminal. K-01 Serf cleans the Transfer Shaft. Slammed into Y-45 Defender. K-01 Serf cleans the Terminal. Slammed into Y-45 Defender. Transfer Shaft disabled. Slammed into Y-45 Defender. Imp. Ion Engine broken. Destabilizing: Short circuit. K-01 Serf collects debris. Drone Bay destroyed. Map ----- +----------------------------------------------------+ | ????????#""" #T #?# | | ??????###"G> """"" """"" # ### | | ??????# """ ! """"" """"" # #"" | | ??????# != """"" """"" #######"T | | ??????# # # #?????#"" | | ??????# # = ######################## | | ???????# = = #???# [ / | | ????#??# ! ! # #???# = ] #### ## | | ????# # # ###### #???# #??# ## | | ????# # #### #???# #???# #??# ## | | ????# ! ###???# #???# #??# ## | | ????# #?????# #???# = #??# ## | | ????# T ####### #???# #??# + | | ????# " + #???# #??# ##### | | ????# # """ """ #### ####???#####+#####??# #???# | | ????##?# """ """ #??# #??????# ########/##??# | | ???????## """ """ #??# ######?# # #??? | | ????????# #??# ##"""#?# # """ #??? | | ????????##""T""#######+##"T"###% # """"?" #??? | | ?????????#"""""?# # u # % # "????" #??? | | ??????########### #!g # # "????" #??? | | ??????# # # u +% %% # "?"""" #??? | | ???????^ # # kkk #### + """ #??? | | ????????""" """ # %#Y"""k"""u#?## %# #??? | | ????????""" """ + + """g""" #?#T ###########??? | | ????????""" """ # # "" @""" #?## %## #??? | | ????????""" """ # # % Y #??#% + #??? | | ????????""" """ + ###########??# ## """" #??? | | ?????# # #????????????# ## "???? #??? | | ?????######"Y"### #???????????## ## "????" #??? | | ??????????#"""??# #???????????# # ""???" #??? | | ??????????####??# #???????????# # ""??" #??? | | ????????????????# #???????????# + """" #??? | | ???????????????? #???????????# # #??? | | ???????????????## "???????????## ###########??? | | ????????????????# ##???????????# # # !!#?????? | | ????????????????# #????????????# + #?????? | | ????????????????# #????????????# # #!!!!#?????? | | ????????????????# #????????????# #T######?????? | | ???????????????? ????????????# ###??????????? | | ???????????????? ????????????# #????????????? | | ???????????????? ????????????# #????????????? | | ???????????????? ????????????# #??????###???? | | ???????????????# #???????????# ########T#"??? | | ???????????????#### #????????????#!% % "??? | | ??????????????????? ?????????????#% % % % "??? | | ?????????????????????????????#####+######+####"??? | | ?????????????????????????????# #?????? | | ?????????????????????????????# #?????? | | ?????????????????????????????# #?????? | +----------------------------------------------------+ Best States ------------- Heat Dissipation 28 Energy Generation 15 Energy Capacity 400 Matter Stores 300 Matter Capacity 300 Sight Range 16 Terrain Scan Density 10 Evasion (%) 55 Offensive Hacking 20 Item Schematics ----------------- None Robot Schematics ------------------ None Fabricated ------------ Nothing Repaired ---------- Aluminum Leg | 73% | -9/Materials Studied --------- None Alien Tech Used ----------------- None Achievements -------------- Organ Harvest Resistances Are Futile There's More Where That Came From Challenges ------------ None Game ------ Seed GravmagAblativeRailgun Manual? 0 Play Time 00:21:47 Cumulative 3.5 hours Start 2026.04.20 @ 02:19:33 End 2026.04.20 @ 02:42:12 Sessions 1 Manual Loads 0 Difficulty Rogue Special Mode None Game No. 12 Rogue 12 Adventurer 0 Explorer 0 Win Type - Total 0 Types 0/0/0/0/0/0/0/0/0/0 Lore% 2 Gallery% 5 Achievement% 5 Wizard Run 0 Options --------- Layout 1 ASCII 0 Keyboard 0 Movement Numpad Keybinds 0 Fullscreen 1 Font 32/SmallcapsGlow Map View 50x35 Zoom Use 0% Tactical HUD 0 Map Filters NONE Filters NONE Steam 1 RUN: 428d7fe2-4867-4475-8a92-9752dff552f2